bitfinex/quotes_SOLUSD_20251231
["timestamp","ask_amount","ask_price","bid_price","bid_amount"]
[1767182518677,11.7217297,126.67,126.64,0.71]
[1767182522377,3.82699433,126.66,126.63,0.71]
[1767182522575,3.82699433,126.65,126.62,0.91]
[1767182522785,0.68,126.65,126.62,0.91]
[1767182523077,3.82699433,126.65,126.62,0.91]
[1767182524179,3.14699433,126.64,126.62,0.91]
[1767182524373,3.82699433,126.65,126.62,0.91]
[1767182525299,11.7229296,126.65,126.62,0.91]
[1767182525676,3.82699433,126.64,126.62,0.2]
[1767182526295,0.68,126.64,126.62,0.2]
[1767182526494,3.82699433,126.64,126.62,0.2]
[1767182527904,11.72342891,126.64,126.62,0.2]
[1767182528102,8.57643458,126.64,126.62,0.2]
[1767182528404,11.72342891,126.64,126.62,0.2]
[1767182528903,8.57643458,126.64,126.62,0.2]
[1767182529083,11.72342891,126.64,126.62,0.2]
[1767182529902,3.82699433,126.63,126.62,0.2]
[1767182530404,11.72401715,126.63,126.62,1e-08]
[1767182531779,8.57662082,126.64,126.62,1e-08]
[1767182531983,7.89662082,126.64,126.62,1e-08]
[1767182532200,7.89662082,126.64,126.62,0.71000001]
[1767182532404,11.72361515,126.64,126.62,0.71000001]
[1767182532607,11.72361515,126.64,126.62,1e-08]
[1767182535603,8.57662082,126.64,126.62,1e-08]
[1767182535802,11.72361515,126.64,126.62,1e-08]
[1767182540504,10.5918828,126.64,126.62,1e-08]
[1767182541811,8.57662082,126.64,126.62,1e-08]
[1767182541992,10.5918828,126.64,126.62,1e-08]
[1767182542709,0.69,126.62,126.58,0.2]
[1767182542902,2.01526198,126.59,126.58,0.2]
[1767182543619,0.69,126.58,126.56,0.2]
[1767182544420,2.70526198,126.58,126.56,0.2]
[1767182547620,0.69,126.58,126.56,0.2]
[1767182548213,0.69,126.58,126.56,0.91]
[1767182548728,2.70526198,126.63,126.58,0.71]
[1767182548906,2.70526198,126.63,126.59,0.71]
[1767182549111,2.70526198,126.63,126.59,2.72526198]
[1767182549417,2.70526198,126.63,126.59,0.71]
[1767182549603,2.70526198,126.63,126.59,2.72526198]
[1767182549806,0.69,126.63,126.6,0.71]
[1767182550004,0.69,126.65,126.61,2.72526198]
[1767182550206,0.69,126.64,126.61,2.72526198]
[1767182550418,0.69,126.65,126.62,0.71]
[1767182550629,0.69,126.65,126.62,2.72526198]
[1767182551814,8.58460372,126.67,126.63,2.72526198]
[1767182552011,0.69,126.66,126.63,2.72526198]
[1767182552198,0.69,126.67,126.64,2.72526198]
[1767182553124,2.70526198,126.67,126.64,2.72526198]
[1767182553305,2.70526198,126.67,126.64,0.71]
[1767182553625,0.69,126.67,126.64,0.71]
[1767182553799,2.70526198,126.67,126.64,0.71]
[1767182555796,0.69,126.67,126.64,0.71]
[1767182556000,2.70526198,126.67,126.64,0.71]
[1767182557221,10.60015927,126.67,126.64,0.71]
[1767182557915,8.58489729,126.67,126.64,0.71]
[1767182558115,10.60015927,126.67,126.64,0.71]
[1767182559518,5.8944212,126.66,126.64,0.71]
[1767182559724,10.60015927,126.67,126.64,0.71]
[1767182559922,5.8944212,126.66,126.64,0.71]
[1767182560227,10.60015927,126.67,126.64,0.71]
[1767182560402,5.89443113,126.66,126.64,0.71]
[1767182560716,10.60015927,126.67,126.64,0.71]
[1767182560903,5.89443121,126.66,126.64,0.71]
[1767182561102,10.60015927,126.67,126.64,0.71]
[1767182561303,5.89430151,126.66,126.64,2.72526198]
[1767182561504,0.69,126.67,126.64,2.72526198]
[1767182561709,5.89451247,126.66,126.64,2.72526198]
[1767182561998,0.69,126.67,126.64,2.72526198]
[1767182562201,5.89451247,126.66,126.64,0.71]
[1767182562401,10.59984891,126.67,126.64,2.72526198]
[1767182562597,5.89459152,126.66,126.64,2.72526198]
[1767182562910,10.59984891,126.67,126.64,0.71]
[1767182563104,5.89459152,126.66,126.64,0.71]
[1767182563425,10.59984891,126.67,126.64,2.72526198]
[1767182563607,5.89467568,126.66,126.64,2.72526198]
[1767182563811,8.58458693,126.67,126.64,2.72526198]
[1767182564009,5.89467568,126.66,126.64,2.72526198]
[1767182564208,8.58458693,126.67,126.64,2.72526198]
[1767182564410,0.69,126.69,126.66,2.52526198]
[1767182564612,5.89441285,126.68,126.66,2.01526198]
[1767182564910,0.69,126.68,126.66,2.01526198]
[1767182566225,0.69,126.69,126.66,2.01526198]
[1767182566427,0.69,126.69,126.67,2.01526198]
[1767182566728,0.69,126.69,126.66,2.01526198]
[1767182567111,0.69,126.69,126.66,2.52526198]
[1767182568131,8.58330694,126.69,126.67,2.01526198]
[1767182568318,8.58330694,126.69,126.66,2.52526198]
[1767182570331,2.71526198,126.67,126.64,0.51]
[1767182570908,0.7,126.67,126.64,2.52526198]
[1767182572311,0.7,126.67,126.65,2.01526198]
[1767182575845,0.7,126.67,126.64,2.52526198]
[1767182576015,0.7,126.67,126.64,0.51]
[1767182576217,0.7,126.67,126.64,2.52526198]
[1767182578715,0.7,126.67,126.65,2.01526198]
[1767182579329,0.7,126.67,126.64,2.52526198]
[1767182579635,2.71526198,126.66,126.62,63.31]
[1767182579819,0.7,126.64,126.61,2.52526198]
[1767182581016,0.7,126.64,126.62,2.01526198]
[1767182581420,10.61121005,126.65,126.62,2.52526198]
[1767182582642,8.59594807,126.65,126.62,2.52526198]
[1767182582834,10.61121005,126.65,126.62,0.51]
[1767182583337,0.7,126.64,126.6,14.42]
[1767182583523,0.7,126.64,126.61,2.52526198]
[1767182584244,0.7,126.64,126.61,0.51]
[1767182584419,0.7,126.64,126.61,2.52526198]
[1767182584621,0.7,126.64,126.62,2.01526198]
[1767182586537,0.7,126.64,126.62,2.52526198]
[1767182587218,0.7,126.64,126.62,2.01526198]
[1767182589242,0.7,126.64,126.61,2.52526198]
[1767182590343,0.7,126.64,126.61,2.01526198]
[1767182590549,0.7,126.64,126.61,2.52526198]
[1767182594049,8.59594807,126.65,126.62,2.52526198]
[1767182594249,5.91578305,126.64,126.62,2.52526198]
[1767182594446,8.59594807,126.65,126.62,2.52526198]
[1767182594640,6.61764083,126.64,126.62,2.52526198]
[1767182594839,0.7,126.64,126.62,2.52526198]
[1767182595640,8.59545187,126.66,126.63,2.52526198]
[1767182595955,5.91905218,126.65,126.63,2.52526198]
[1767182596130,5.91905218,126.64,126.63,2.52526198]
[1767182596331,8.59545187,126.66,126.63,2.52526198]
[1767182597461,8.59545187,126.66,126.64,2.01526198]
[1767182600554,8.59545187,126.66,126.64,3.14687758]
[1767182601562,8.59545187,126.66,126.63,3.65687758]
[1767182601859,8.59545187,126.66,126.63,0.51]
[1767182602045,0.71,126.66,126.63,3.65687758]
[1767182602432,0.71,126.66,126.61,0.51]
[1767182602637,0.71,126.66,126.63,3.14687758]
[1767182602856,0.71,126.65,126.62,3.14687758]
[1767182603248,0.71,126.65,126.62,3.65687758]
[1767182603458,0.71,126.65,126.62,0.51]
[1767182603643,17.56687758,126.66,126.58,0.51]
[1767182603841,0.71,126.65,126.59,3.14687758]
[1767182604046,0.71,126.65,126.6,3.14687758]
[1767182604047,3.14687758,126.64,126.6,3.14687758]
[1767182604263,0.71,126.63,126.6,3.14687758]
[1767182604439,0.71,126.63,126.59,0.51]
[1767182604638,0.71,126.63,126.6,3.65687758]
[1767182605465,0.71,126.64,126.61,3.65687758]
[1767182606255,8.60655489,126.64,126.61,3.65687758]
[1767182606644,8.60655489,126.64,126.61,3.14687758]
[1767182606850,7.89655489,126.64,126.6,0.51]
[1767182607048,0.7,126.63,126.61,3.14687758]
[1767182608967,0.7,126.63,126.6,3.65687758]
[1767182609258,11.74395318,126.63,126.6,0.51]
[1767182609643,8.5970756,126.63,126.6,0.51]
[1767182609863,11.74395318,126.63,126.6,0.51]
[1767182611362,11.04395318,126.63,126.6,0.51]
[1767182611544,11.73395318,126.63,126.6,0.51]
[1767182611744,0.69,126.62,126.59,3.14687758]
[1767182611953,0.69,126.62,126.59,3.65687758]
[1767182612242,8.58768152,126.62,126.58,63.31]
[1767182612444,0.69,126.61,126.58,66.45687758]
[1767182612645,0.69,126.61,126.58,63.31]
[1767182612847,0.69,126.61,126.58,66.45687758]
[1767182613045,0.69,126.61,126.58,63.31]
[1767182613246,0.69,126.61,126.58,66.45687758]
[1767182614368,0.69,126.6,126.58,62.8]
[1767182614662,0.69,126.6,126.57,3.65687758]
[1767182615459,11.7353518,126.61,126.58,0.51]
[1767182615861,8.58847422,126.61,126.58,0.51]
[1767182616161,11.7353518,126.61,126.58,0.51]
[1767182616953,0.69,126.6,126.57,3.65687758]
[1767182617158,0.69,126.6,126.57,0.51]
[1767182617348,0.69,126.6,126.57,3.65687758]
[1767182618654,0.69,126.6,126.57,0.51]
[1767182618862,0.69,126.59,126.56,3.85687758]
[1767182619062,3.83687758,126.59,126.56,0.71]
[1767182619246,3.83687758,126.59,126.56,3.85687758]
[1767182619247,0.69,126.59,126.56,3.85687758]
[1767182619843,11.73647244,126.59,126.56,0.71]
[1767182620045,0.69,126.58,126.56,0.2]
[1767182620256,11.04647244,126.59,126.56,0.2]
[1767182620257,0.69,126.59,126.56,3.85687758]
[1767182620748,8.58922124,126.6,126.57,3.65687758]
[1767182620947,7.89860079,126.61,126.58,3.14687758]
[1767182621161,8.58860079,126.61,126.58,3.65687758]
[1767182621553,0.69,126.6,126.57,0.51]
[1767182621747,0.69,126.6,126.58,3.14687758]
[1767182623266,0.69,126.6,126.57,0.51]
[1767182623464,0.69,126.6,126.58,3.14687758]
[1767182623865,0.69,126.6,126.57,3.65687758]
[1767182624049,0.69,126.61,126.58,3.65687758]
[1767182624250,0.69,126.61,126.58,3.14687758]
[1767182624470,0.69,126.6,126.56,8.61083878]
[1767182624657,0.69,126.6,126.57,3.14687758]
[1767182624851,3.14687758,126.61,126.57,3.14687758]
[1767182625050,3.83687758,126.61,126.58,0.51]
[1767182625571,0.69,126.6,126.57,3.65687758]
[1767182626683,3.83687758,126.6,126.57,0.51]
[1767182628256,0.69,126.6,126.57,0.51]
[1767182628457,3.83687758,126.6,126.57,0.51]
[1767182628660,0.69,126.6,126.57,0.51]
[1767182628870,3.83687758,126.6,126.57,0.51]
[1767182629781,3.83687758,126.6,126.57,3.65687758]
[1767182629964,0.71,126.59,126.57,3.14687758]
[1767182630886,0.71,126.59,126.56,3.85687758]
[1767182631386,0.71,126.59,126.56,0.71]
[1767182631689,0.71,126.59,126.56,3.85687758]
[1767182631864,3.85687758,126.6,126.57,0.51]
[1767182632281,3.14687758,126.6,126.56,3.34687758]
[1767182632587,0.71,126.59,126.56,3.85687758]
[1767182632982,0.71,126.59,126.56,0.71]
[1767182633179,0.71,126.59,126.56,3.85687758]
[1767182633991,0.71,126.59,126.56,0.71]
[1767182634169,0.71,126.59,126.56,3.85687758]
[1767182635789,3.14687758,126.58,126.56,0.71]
[1767182636312,3.85687758,126.58,126.56,0.2]
[1767182640693,0.71,126.58,126.56,0.2]
[1767182641687,3.85687758,126.58,126.56,0.2]
[1767182641994,3.85687758,126.57,126.55,0.2]
[1767182642292,3.85687758,126.56,126.54,0.2]
[1767182642491,3.14687758,126.55,126.54,0.2]
[1767182642878,3.85687758,126.57,126.54,0.2]
[1767182643079,3.85687758,126.57,126.54,0.71]
[1767182643280,3.85687758,126.57,126.54,3.85687758]
[1767182644177,3.14687758,126.56,126.54,0.2]
[1767182644390,3.85687758,126.57,126.54,0.71]
[1767182644793,3.85687758,126.57,126.54,3.85687758]
[1767182644996,3.85687758,126.57,126.54,0.71]
[1767182645706,0.71,126.57,126.54,0.71]
[1767182645897,3.85687758,126.57,126.54,0.71]
[1767182646400,0.71,126.58,126.55,3.65687758]
[1767182646607,0.71,126.6,126.56,3.65687758]
[1767182646803,3.85687758,126.6,126.56,3.65687758]
[1767182647006,0.71,126.59,126.56,0.51]
[1767182647212,0.71,126.59,126.56,3.65687758]
[1767182647994,0.71,126.59,126.57,3.14687758]
[1767182649211,0.71,126.59,126.56,0.51]
[1767182649708,0.71,126.59,126.56,3.65687758]
[1767182650508,0.71,126.59,126.56,0.51]
[1767182650809,0.71,126.59,126.56,3.65687758]
[1767182651192,0.71,126.6,126.57,0.51]
[1767182651394,0.71,126.6,126.58,3.14687758]
[1767182652011,0.71,126.63,126.58,3.65687758]
[1767182652318,0.71,126.61,126.58,3.65687758]
[1767182653491,11.04446626,126.63,126.59,3.14687758]
[1767182653688,0.71,126.62,126.59,3.65687758]
[1767182654111,0.71,126.62,126.6,3.14687758]
[1767182654893,0.71,126.62,126.59,0.51]
[1767182655095,0.71,126.62,126.59,3.65687758]
[1767182655299,0.71,126.62,126.59,0.51]
[1767182655511,0.71,126.62,126.59,3.65687758]
[1767182656191,0.71,126.62,126.6,3.14687758]
[1767182660521,0.71,126.62,126.58,6.57601304]
[1767182660722,0.66,126.61,126.59,3.14687758]
[1767182660910,7.89774466,126.62,126.59,3.14687758]
[1767182661116,0.66,126.61,126.59,3.14687758]
[1767182662694,0.66,126.65,126.6,2.01536089]
[1767182662894,0.66,126.65,126.63,2.01536089]
[1767182663124,0.66,126.69,126.64,2.01536089]
[1767182663293,0.66,126.68,126.65,2.01536089]
[1767182663495,2.67536089,126.68,126.64,2.01536089]
[1767182663704,0.66,126.67,126.64,2.01536089]
[1767182664495,0.66,126.66,126.64,2.01536089]
[1767182665222,0.66,126.66,126.63,2.52536089]
[1767182667028,0.66,126.66,126.63,0.51]
[1767182667323,0.66,126.66,126.63,2.52536089]
[1767182667913,0.66,126.66,126.64,2.01536089]
[1767182668499,8.55522697,126.66,126.63,2.52536089]
[1767182668695,0.66,126.66,126.63,2.52536089]
[1767182669020,2.67536089,126.66,126.63,0.51]
[1767182670323,0.66,126.66,126.63,0.51]
[1767182670522,0.66,126.66,126.63,2.52536089]
[1767182672624,0.66,126.65,126.63,2.01536089]
[1767182673927,0.66,126.65,126.62,0.51]
[1767182674122,0.66,126.65,126.63,2.01536089]
[1767182676825,0.66,126.64,126.61,62.8]
[1767182677003,0.66,126.64,126.61,2.01536089]
[1767182677208,0.66,126.64,126.6,0.51]
[1767182677404,0.66,126.64,126.61,2.01536089]
[1767182677605,0.66,126.64,126.61,2.52536089]
[1767182679937,8.55640991,126.64,126.61,2.52536089]
[1767182680238,0.66,126.63,126.61,2.01536089]
[1767182680802,0.66,126.63,126.6,2.52536089]
[1767182681601,0.66,126.63,126.61,2.01536089]
[1767182682930,8.55640991,126.64,126.61,2.01536089]
[1767182683323,7.89640991,126.64,126.61,2.01536089]
[1767182683528,0.66,126.63,126.61,2.01536089]
[1767182683838,0.66,126.65,126.59,20.99601304]
[1767182684037,0.66,126.63,126.6,2.52536089]
[1767182684923,0.66,126.63,126.61,0.51]
[1767182685622,0.66,126.63,126.61,2.52536089]
[1767182686542,0.66,126.63,126.61,0.51]
[1767182686743,0.66,126.63,126.61,2.52536089]
[1767182687242,0.66,126.64,126.61,0.51]
[1767182687416,0.66,126.64,126.62,2.01536089]
[1767182687616,0.66,126.64,126.61,2.52536089]
[1767182687818,0.66,126.64,126.62,2.01536089]
[1767182688021,0.66,126.64,126.61,2.52536089]
[1767182688346,2.67536089,126.65,126.62,0.51]
[1767182694231,2.01536089,126.64,126.62,0.51]
[1767182694632,2.71536089,126.64,126.62,0.51]
[1767182699737,0.7,126.62,126.61,6.57601304]
[1767182699939,2.71536089,126.62,126.58,69.93871692]
[1767182700160,2.71536089,126.62,126.58,63.31]
[1767182700553,2.71536089,126.62,126.58,71.20969113]
[1767182700752,2.71536089,126.62,126.58,73.22505202]
[1767182700950,2.71536089,126.62,126.59,0.51]
[1767182702170,0.7,126.66,126.61,2.52536089]
[1767182702352,2.71536089,126.65,126.61,2.52536089]
[1767182702548,0.7,126.65,126.61,2.52536089]
[1767182703670,2.71536089,126.65,126.61,2.52536089]
[1767182705875,2.71536089,126.65,126.61,0.51]
[1767182706043,2.71536089,126.62,126.59,63.31]
[1767182706247,2.68624691,126.62,126.59,0.51]
[1767182706454,2.68624691,126.62,126.59,8.40951207]
[1767182707056,0.67088602,126.62,126.59,8.40951207]
[1767182707264,0.67088602,126.62,126.59,10.42487296]
[1767182707462,2.01536089,126.63,126.6,0.53]
[1767182707850,7.89624602,126.65,126.6,0.53]
[1767182708062,7.89624602,126.65,126.6,2.54536089]
[1767182708063,2.01536089,126.64,126.6,2.54536089]
[1767182708263,0.7,126.63,126.6,2.54536089]
[1767182708668,2.71536089,126.63,126.6,0.53]
[1767182712172,2.71536089,126.64,126.61,0.53]
[1767182712369,0.7,126.63,126.6,2.01536089]
[1767182712577,0.7,126.63,126.6,2.54536089]
[1767182713562,8.59547598,126.66,126.61,0.53]
[1767182713763,2.71536089,126.65,126.62,0.53]
[1767182714561,0.7,126.65,126.62,0.53]
[1767182715580,2.71536089,126.65,126.62,0.53]
[1767182717081,0.7,126.65,126.62,0.53]
[1767182717281,2.71536089,126.65,126.62,0.53]
[1767182719167,0.7,126.65,126.62,0.53]
[1767182719386,2.71536089,126.65,126.62,0.53]
[1767182719768,0.7,126.65,126.62,0.53]
[1767182720383,0.7,126.65,126.62,2.54536089]
[1767182720585,0.65,126.66,126.63,0.53]
[1767182720886,2.66536089,126.65,126.62,0.53]
[1767182721985,0.65,126.65,126.62,0.53]
[1767182722184,2.66536089,126.65,126.62,0.53]
[1767182722984,0.65,126.65,126.62,0.53]
[1767182723189,2.66536089,126.65,126.62,0.53]
[1767182724590,0.65,126.65,126.62,0.53]
[1767182727066,3.14745881,126.66,126.62,0.53]
[1767182727271,3.79745881,126.67,126.63,3.14745881]
[1767182727471,3.79745881,126.67,126.64,0.53]
[1767182727885,0.65,126.66,126.63,3.14745881]
[1767182728080,0.65,126.68,126.65,0.53]
[1767182728280,0.65,126.69,126.66,0.53]
[1767182728481,0.65,126.7,126.66,3.67745881]
[1767182729275,0.65,126.69,126.66,3.67745881]
[1767182733296,19.72969363,126.72,126.69,0.53]
[1767182733297,0.65,126.72,126.69,0.53]
[1767182734195,3.79745881,126.72,126.69,0.53]
[1767182735298,3.79745881,126.71,126.68,0.53]
[1767182737605,0.65,126.71,126.68,3.67745881]
[1767182743696,0.65,126.71,126.68,0.53]
[1767182744008,0.65,126.71,126.68,3.67745881]
[1767182750312,3.14745881,126.7,126.65,62.8]
[1767182750512,3.81745881,126.69,126.66,0.53]
[1767182750810,0.67,126.7,126.67,3.67745881]
[1767182751400,0.67,126.7,126.67,0.53]
[1767182751616,0.67,126.7,126.67,3.67745881]
[1767182753418,0.67,126.72,126.68,0.53]
[1767182753603,3.81745881,126.7,126.67,0.53]
[1767182754804,3.14745881,126.69,126.65,62.8]
[1767182755007,3.81745881,126.68,126.65,0.53]
[1767182755208,3.14745881,126.68,126.65,0.53]
[1767182755520,3.81745881,126.69,126.66,0.53]
[1767182756441,3.14745881,126.67,126.63,0.53]
[1767182756620,3.14745881,126.66,126.62,22.31724614]
[1767182756799,3.81745881,126.67,126.63,3.14745881]
[1767182757422,3.81745881,126.67,126.62,22.31724614]
[1767182757599,3.81745881,126.67,126.63,3.14745881]
[1767182758624,3.81745881,126.67,126.63,3.65745881]
[1767182758942,0.67,126.67,126.64,3.65745881]
[1767182759224,3.81745881,126.67,126.64,0.51]
[1767182761127,0.67,126.7,126.67,0.51]
[1767182761328,0.67,126.7,126.67,3.65745881]
[1767182761534,0.67,126.7,126.68,3.14745881]
[1767182762029,3.14745881,126.69,126.65,21.02682443]
[1767182762232,3.81745881,126.68,126.65,0.51]
[1767182762641,0.67,126.68,126.65,0.51]
[1767182762840,3.81745881,126.68,126.65,0.51]
[1767182764852,3.81745881,126.68,126.64,15.01311799]
[1767182765045,3.81745881,126.68,126.64,18.1605768]
[1767182765424,3.81745881,126.68,126.65,0.51]
[1767182767841,3.14745881,126.68,126.65,0.51]
[1767182769948,3.14745881,126.67,126.65,0.51]
[1767182770252,3.81745881,126.68,126.65,0.51]
[1767182770836,3.14745881,126.68,126.65,0.51]
[1767182771142,3.81745881,126.68,126.65,0.51]
[1767182771462,3.81745881,126.68,126.65,7.11682443]
[1767182772245,0.67,126.68,126.65,7.11682443]
[1767182772434,3.81745881,126.68,126.65,7.11682443]
[1767182773643,3.81745881,126.67,126.63,95.38104349]
[1767182773845,3.81745881,126.67,126.64,0.51]
[1767182774047,3.81745881,126.67,126.64,7.11682443]
[1767182777455,0.67,126.67,126.64,15.01322281]
[1767182777655,3.81745881,126.67,126.64,15.01322281]
[1767182778353,0.67,126.67,126.64,15.01322281]
[1767182778554,3.81745881,126.67,126.64,15.01322281]
[1767182782354,3.81745881,126.67,126.64,18.16068162]
[1767182783158,3.81745881,126.67,126.64,15.01322281]
[1767182783338,3.81745881,126.67,126.64,18.16068162]
[1767182783865,3.14745881,126.67,126.64,6.60682443]
[1767182784056,3.82745881,126.66,126.64,6.60682443]
[1767182784354,0.68,126.66,126.64,6.60682443]
[1767182784856,3.82745881,126.67,126.64,7.11682443]
[1767182785367,19.72933,126.72,126.66,0.51]
[1767182785551,0.68,126.71,126.67,3.65745881]
[1767182785867,3.82745881,126.71,126.67,3.65745881]
[1767182786162,0.68,126.71,126.67,0.51]
[1767182786346,0.68,126.71,126.68,3.14745881]
[1767182786548,0.68,126.7,126.68,2.01244316]
[1767182787142,0.68,126.7,126.68,8.61926759]
[1767182790363,0.68,126.7,126.68,6.60682443]
[1767182790739,2.69244316,126.7,126.68,6.60682443]
[1767182790940,2.69244316,126.7,126.67,7.11682443]
[1767182791761,0.68,126.7,126.67,9.12926759]
[1767182793742,10.5845411,126.71,126.68,0.51]
[1767182794167,0.68,126.7,126.68,0.51]
[1767182798868,39.5486836,126.75,126.68,2.52244316]
[1767182799067,0.68,126.74,126.7,0.51]
[1767182799271,2.01244316,126.73,126.7,0.51]
[1767182799573,0.68,126.72,126.69,2.52244316]
[1767182799956,0.68,126.72,126.69,9.12926759]
[1767182800367,2.69244316,126.72,126.69,9.12926759]
[1767182800675,0.68,126.72,126.69,9.12926759]
[1767182800854,0.68,126.71,126.69,9.12926759]
[1767182801175,0.68,126.71,126.68,8.61926759]
[1767182801491,0.68,126.71,126.68,9.12926759]
[1767182803172,0.68,126.71,126.68,7.11682443]
[1767182803360,0.68,126.71,126.68,9.12926759]
[1767182805073,0.68,126.71,126.68,7.11682443]
[1767182805278,0.68,126.71,126.68,9.12926759]
[1767182807085,0.68,126.71,126.68,7.11682443]
[1767182807382,0.68,126.71,126.68,9.12926759]
[1767182808682,0.68,126.71,126.68,7.11682443]
[1767182808863,0.68,126.71,126.68,9.12926759]
[1767182809056,0.68,126.71,126.68,7.11682443]
[1767182809260,0.68,126.71,126.68,9.12926759]
[1767182809457,0.68,126.71,126.68,7.11682443]
[1767182809787,0.68,126.71,126.68,9.12926759]
[1767182810674,0.1,126.75,126.67,79.82346462]
[1767182810874,2.01244316,126.71,126.68,0.72]
[1767182811381,2.01244316,126.72,126.68,2.73244316]
[1767182812084,0.1,126.75,126.68,2.73244316]
[1767182812386,2.01244316,126.72,126.68,2.73244316]
[1767182812768,0.68,126.71,126.68,2.73244316]
[1767182812972,0.68,126.71,126.68,0.72]
[1767182813487,2.69244316,126.71,126.68,0.72]
[1767182820300,0.68,126.71,126.68,0.72]
[1767182820498,2.69244316,126.71,126.68,0.72]
[1767182820685,2.69244316,126.71,126.68,7.32682443]
[1767182821805,2.69244316,126.71,126.68,0.72]
[1767182824605,2.69244316,126.71,126.68,7.32682443]
[1767182826718,2.69244316,126.71,126.69,6.60682443]
[1767182827112,2.66218788,126.71,126.69,6.60682443]
[1767182828019,0.64974472,126.71,126.68,7.32682443]
[1767182828222,2.66218788,126.71,126.68,7.32682443]
[1767182828528,2.01244316,126.71,126.68,7.32682443]
[1767182829029,2.69244316,126.71,126.68,7.32682443]
[1767182829514,0.68,126.71,126.68,7.32682443]
[1767182830213,0.68,126.71,126.69,6.60682443]
[1767182836019,2.69244316,126.71,126.69,6.60682443]
[1767182839421,0.68,126.71,126.69,6.60682443]
[1767182839626,2.69244316,126.71,126.69,6.60682443]
[1767182841426,0.1,126.75,126.69,7.32682443]
[1767182841611,2.01244316,126.71,126.69,0.72]
[1767182843429,8.56177775,126.72,126.69,0.72]
[1767182843607,2.01244316,126.71,126.69,0.72]
[1767182846906,1.98350825,126.71,126.69,0.72]
[1767182847306,2.01244316,126.71,126.69,0.72]
[1767182848537,3.14456305,126.71,126.69,0.72]
[1767182850934,3.81456305,126.71,126.69,0.72]
[1767182851632,3.81456305,126.71,126.69,7.32682443]
[1767182853322,0.67,126.71,126.69,7.32682443]
[1767182853622,0.67,126.71,126.7,6.60682443]
[1767182854022,0.67,126.71,126.69,7.32682443]
[1767182855730,0.67,126.71,126.7,6.60682443]
[1767182856536,0.67,126.71,126.7,6.62840966]
[1767182856709,3.81456305,126.71,126.7,6.62840966]
[1767182858629,0.67,126.71,126.7,6.62840966]
[1767182858833,3.81456305,126.71,126.7,6.62840966]
[1767182863142,0.67,126.71,126.7,6.62840966]
[1767182863322,3.81456305,126.71,126.7,6.62840966]
[1767182864339,11.70660554,126.71,126.67,77.22]
[1767182864538,0.67,126.71,126.68,3.83456305]
[1767182864837,3.14456305,126.73,126.69,0.69]
[1767182865037,3.81456305,126.72,126.69,0.69]
[1767182869249,11.7060301,126.72,126.69,0.69]
[1767182869439,3.14456305,126.71,126.69,0.69]
[1767182869836,3.14456305,126.7,126.68,0.72]
[1767182870037,3.11549405,126.7,126.68,0.72]
[1767182872048,0.72,126.71,126.68,0.72]
[1767182872245,3.14456305,126.7,126.68,0.72]
[1767182874239,0.72,126.68,126.66,8.80644307]
[1767182874437,3.14456305,126.72,126.64,0.72]
[1767182874438,3.76456305,126.67,126.64,0.72]
[1767182874643,3.14456305,126.65,126.64,0.72]
[1767182875033,3.14456305,126.66,126.64,0.72]
[1767182876639,3.11474162,126.66,126.64,0.72]
[1767182880155,3.14456305,126.65,126.64,0.72]
[1767182880333,3.14456305,126.66,126.64,0.72]
[1767182881854,0.62,126.67,126.64,0.72]
[1767182882235,3.14456305,126.66,126.64,0.72]
[1767182883854,0.62,126.67,126.64,0.72]
[1767182884249,3.14456305,126.7,126.66,3.14456305]